bitfinex/quotes_ETHUSD_20240701
["timestamp","ask_amount","ask_price","bid_price","bid_amount"]
[1719831812766,0.02077972,3471.8,3471.2,2.88320196]
[1719831813965,0.02077972,3471.8,3471.3,3.69375]
[1719831814148,0.02077972,3471.8,3471.4,2.88068]
[1719831814343,3.0,3472.0,3471.4,1.25602316]
[1719831814577,2.4745,3472.2,3471.7,0.813]
[1719831814785,0.144,3472.2,3471.7,3.69342]
[1719831815275,2.3948,3472.1,3471.2,3.69619196]
[1719831815476,2.3948,3472.1,3471.4,2.88067]
[1719831815477,0.02077972,3472.0,3471.4,2.88067]
[1719831816681,0.02077972,3472.0,3471.6,2.88045]
[1719831816853,0.02077972,3472.0,3471.4,2.88062]
[1719831819283,0.02077972,3472.0,3471.5,2.88059]
[1719831821501,0.02077972,3472.0,3471.6,2.88051]
[1719831821910,2.3948,3472.1,3471.4,0.813]
[1719831821911,2.41557972,3472.1,3471.7,2.88043]
[1719831824507,2.41557972,3472.1,3471.5,2.88054]
[1719831824702,2.41557972,3472.1,3471.6,2.88051]
[1719831833419,2.41557972,3472.1,3471.4,3.69365]
[1719831833420,2.41557972,3472.1,3471.5,2.88053]
[1719831834033,2.41557972,3472.1,3471.4,3.69361]
[1719831834332,2.41557972,3472.1,3471.5,2.88058]
[1719831834730,2.2619,3471.9,3471.2,0.00237196]
[1719831834966,0.02077972,3471.8,3471.2,0.00237196]
[1719831835090,0.02077972,3471.8,3471.2,2.88316196]
[1719831837024,0.02077972,3471.8,3471.2,3.69616196]
[1719831838095,0.02077972,3471.8,3471.2,0.00237196]
[1719831838096,2.3114,3471.7,3471.2,0.00237196]
[1719831838308,2.3114,3471.5,3471.2,0.00237196]
[1719831838513,0.02077972,3471.4,3471.2,0.00237196]
[1719831839120,2.4493,3471.3,3471.2,0.00237196]
[1719831853293,2.4213,3471.3,3471.2,0.00237196]
[1719831853584,4.29822377,3471.3,3471.2,0.00237196]
[1719831853794,7.29822377,3471.3,3471.2,0.00237196]
[1719831854877,10.17898377,3471.3,3471.2,0.00237196]
[1719831856397,12.48038377,3471.3,3471.2,0.00237196]
[1719831856751,12.48038377,3471.3,3471.2,1.32432234]
[1719831858986,11.66738377,3471.3,3471.2,1.32432234]
[1719831859190,12.48038377,3471.3,3471.2,1.32432234]
[1719831862053,18.94814377,3471.3,3471.2,1.32432234]
[1719831862260,2.88144,3470.5,3470.2,0.1220645]
[1719831862462,2.3321,3470.3,3470.2,0.1220645]
[1719831862766,2.35287972,3470.3,3470.2,0.1220645]
[1719831865120,0.02077972,3470.3,3470.2,0.1220645]
[1719831866306,3.0,3470.4,3470.2,0.1220645]
[1719831866508,2.4911,3470.8,3470.2,2.4171645]
[1719831866674,0.02077972,3470.7,3470.2,2.4171645]
[1719831867408,0.02077972,3470.7,3470.2,6.1118345]
[1719831867409,3.02077972,3470.7,3470.2,6.1118345]
[1719831867568,3.02077972,3470.8,3470.4,3.69445]
[1719831867769,0.02077972,3470.9,3470.5,2.88142]
[1719831867981,0.83377972,3471.3,3470.5,3.78074545]
[1719831868186,0.02077972,3471.2,3470.5,2.88142]
[1719831869006,0.02077972,3471.2,3470.4,0.813]
[1719831869162,0.02077972,3471.2,3470.4,3.6945]
[1719831869870,0.02077972,3471.2,3470.5,2.88142]
[1719831870071,0.02077972,3471.2,3470.3,2.88159]
[1719831870303,0.02077972,3471.2,3470.3,3.69459]
[1719831870603,0.02077972,3471.2,3470.4,2.8815]
[1719831871564,2.4882,3471.1,3470.2,8.98702413]
[1719831871764,0.02077972,3471.0,3470.2,11.21749854]
[1719831872001,3.02077972,3471.0,3470.3,2.88159]
[1719831873805,3.02077972,3471.0,3470.2,11.21755854]
[1719831877173,3.02077972,3471.0,3470.2,8.33588854]
[1719831877509,3.83377972,3471.0,3470.2,6.10541413]
[1719831877900,2.88132,3470.7,3470.2,6.10541413]
[1719831878103,0.02077972,3470.6,3470.2,6.10541413]
[1719831878303,2.4674,3470.5,3470.2,0.1220645]
[1719831878504,0.02077972,3470.4,3470.2,0.1220645]
[1719831879007,0.55772969,3470.4,3470.2,0.1220645]
[1719831879407,3.55772969,3470.4,3470.2,0.1220645]
[1719831884491,3.02077972,3470.4,3470.2,0.1220645]
[1719831884696,0.02077972,3470.4,3470.2,0.1220645]
[1719831885021,2.4674,3470.5,3470.2,0.1220645]
[1719831885022,0.02077972,3470.5,3470.2,0.1220645]
[1719831886214,5.3444,3470.8,3470.2,0.1220645]
[1719831886215,0.02077972,3470.7,3470.2,0.1220645]
[1719831897610,0.813,3470.5,3470.2,0.1220645]
[1719831897816,0.02077972,3470.4,3470.2,0.1220645]
[1719831898057,0.69229769,3470.4,3470.2,0.1220645]
[1719831898555,6.18289769,3470.4,3470.2,0.1220645]
[1719831904426,3.69229769,3470.4,3470.2,0.1220645]
[1719831904643,2.88112,3470.9,3470.2,2.5579645]
[1719831904644,0.02077972,3470.3,3470.2,2.5579645]
[1719831904845,0.02077972,3470.5,3470.2,2.5579645]
[1719831905850,0.02077972,3470.7,3470.2,2.5579645]
[1719831906053,0.02077972,3470.7,3470.2,2.4025645]
[1719831906261,0.92343969,3470.7,3470.2,2.4025645]
[1719831906621,0.02077972,3470.7,3470.2,3.2155645]
[1719831906820,3.02077972,3471.0,3470.2,3.2155645]
[1719831907536,3.0,3470.9,3470.3,2.88152]
[1719831907833,0.02077972,3470.8,3470.3,2.88152]
[1719831908763,0.02077972,3471.1,3470.3,2.88152]
[1719831908916,0.92709369,3471.1,3470.3,2.88152]
[1719831910659,0.92709369,3471.1,3470.2,2.4025645]
[1719831911060,3.80802369,3471.1,3470.2,2.4025645]
[1719831911245,0.813,3470.8,3470.2,2.4025645]
[1719831911461,0.813,3470.8,3470.2,0.1220645]
[1719831911462,0.02077972,3470.7,3470.2,0.1220645]
[1719831911768,0.62974797,3470.6,3470.2,0.1220645]
[1719831912060,0.02077972,3470.5,3470.2,0.1220645]
[1719831917535,0.02077972,3470.7,3470.2,0.1220645]
[1719831918436,5.4637,3470.9,3470.2,0.1220645]
[1719831918437,0.02077972,3470.8,3470.2,0.1220645]
[1719831920453,3.02077972,3470.8,3470.2,0.1220645]
[1719831920654,0.02077972,3470.8,3470.4,2.4223]
[1719831920862,3.0,3470.7,3470.4,2.4223]
[1719831921169,0.02077972,3470.8,3470.3,2.88154]
[1719831925974,0.02077972,3470.9,3470.3,2.88154]
[1719831926901,0.02077972,3470.9,3470.2,0.1220645]
[1719831927061,0.76210237,3470.8,3470.2,0.1220645]
[1719831927262,0.02077972,3470.7,3470.2,0.1220645]
[1719831928267,2.4906,3470.6,3470.2,0.1220645]
[1719831928463,0.02077972,3470.5,3470.2,0.1220645]
[1719831928666,3.02077972,3470.5,3470.2,0.1220645]
[1719831928866,4.02942793,3470.5,3470.2,0.1220645]
[1719831931566,0.06245338,3470.4,3470.2,0.1220645]
[1719831939507,2.46157972,3470.3,3470.2,0.1220645]
[1719831939708,5.46157972,3470.3,3470.2,0.1220645]
[1719831939875,5.52345301,3470.3,3470.2,0.1220645]
[1719831940074,6.73339031,3470.3,3470.2,0.1220645]
[1719831944922,12.53549805,3470.3,3470.2,0.1220645]
[1719831945882,13.34849805,3470.3,3470.2,0.1220645]
[1719831946082,2.88198,3469.9,3469.4,5.98334963]
[1719831946287,2.8824,3469.4,3469.0,5.98334963]
[1719831946610,3.08199161,3469.3,3469.0,5.98334963]
[1719831946921,0.02077972,3469.2,3469.0,5.98334963]
[1719831947090,0.02077972,3469.2,3468.6,6.1472]
[1719831947295,0.06103146,3469.1,3468.6,0.813]
[1719831947605,0.06103146,3469.1,3468.4,5.98334963]
[1719831947606,0.813,3469.0,3468.4,5.98334963]
[1719831947799,0.02077972,3468.9,3468.4,5.98334963]
[1719831948003,0.02077972,3469.0,3468.4,5.98334963]
[1719831948421,0.06091386,3468.9,3468.4,5.98334963]
[1719831948888,0.06091386,3468.9,3468.4,8.86650963]
[1719831949420,0.06091386,3468.9,3468.5,2.88307]
[1719831949642,0.06091386,3468.9,3468.8,5.35214]
[1719831949802,3.02077972,3469.5,3468.8,5.35214]
[1719831949803,0.02077972,3469.5,3468.8,5.35214]
[1719831950122,0.06072485,3469.4,3468.9,3.69575]
[1719831950755,0.06072485,3469.4,3469.3,0.813]
[1719831951038,0.06072485,3469.4,3469.3,6.57784]
[1719831951184,0.02077972,3470.3,3469.3,6.57784]
[1719831951185,0.02077972,3470.3,3469.4,2.88234]
[1719831951389,0.83377972,3470.6,3469.7,2.88208]
[1719831951638,0.0593345,3470.2,3469.6,0.8706371]
[1719831951788,0.05913713,3470.1,3469.8,2.88193]
[1719831952302,0.05912553,3470.0,3469.8,2.88193]
[1719831952694,0.02077972,3470.6,3469.8,2.88193]
[1719831952897,0.0590208,3469.9,3469.6,2.88215]
[1719831953130,0.62354969,3470.6,3469.6,2.88215]
[1719831953131,0.813,3470.5,3469.6,2.88215]
[1719831953333,0.02077972,3470.4,3469.6,2.88215]
[1719831953504,0.813,3470.3,3469.4,2.88232]
[1719831953689,0.02077972,3470.2,3469.4,2.88232]
[1719831953895,0.08013857,3470.2,3469.4,4.43720189]
[1719831954095,0.08013857,3470.2,3469.4,2.88232]
[1719831954335,0.813,3470.1,3469.4,2.88232]
[1719831954540,0.02077972,3470.0,3469.3,3.54595924]
[1719831954689,0.08003489,3470.0,3469.3,3.54595924]
[1719831955523,0.08003489,3470.0,3469.4,2.88234]
[1719831956705,0.08003489,3470.0,3469.4,4.43723089]
[1719831956923,0.08003489,3470.0,3469.4,5.25023089]
[1719831957296,0.05925517,3470.0,3469.4,5.25023089]
[1719831957543,0.02077972,3470.3,3469.5,0.813]
[1719831957761,0.05905111,3469.9,3469.5,0.813]
[1719831957948,0.02077972,3470.3,3469.5,0.813]
[1719831958150,0.05899925,3469.8,3469.5,0.813]
[1719831958447,0.05897601,3469.7,3469.5,0.813]
[1719831958608,0.02077972,3470.3,3469.5,0.813]
[1719831958801,1.04072269,3470.3,3469.5,0.813]
[1719831959032,0.07998637,3470.2,3469.5,0.813]
[1719831961429,0.07998637,3470.2,3469.5,3.69525]
[1719831962565,2.2729,3470.1,3469.5,2.88225]
[1719831962776,0.02077972,3470.0,3469.5,2.88225]
[1719831963066,0.0779244,3470.0,3469.5,2.88225]
[1719831966171,0.0779244,3470.0,3469.4,0.813]
[1719831966474,0.81406198,3470.0,3469.3,3.69539]
[1719831968068,0.81406198,3470.0,3469.3,2.88239]
[1719831968237,0.81406198,3470.0,3469.3,3.69539]
[1719831969172,0.81406198,3470.0,3469.2,5.98334963]
[1719831969472,2.3207,3469.8,3469.0,0.813]
[1719831969636,0.68067518,3469.7,3469.0,0.813]
[1719831969835,0.68067518,3469.7,3469.0,3.69567]
[1719831970477,0.68067518,3469.7,3469.0,0.813]
[1719831970868,0.05712549,3469.7,3469.2,0.813]
[1719831971083,3.0,3469.9,3469.4,0.813]
[1719831971292,0.05727659,3469.8,3469.5,2.88225]
[1719831971601,3.0,3470.0,3469.4,0.813]
[1719831971602,3.02077972,3470.0,3469.4,0.813]
[1719831971894,0.02077972,3470.0,3469.4,3.69534]
[1719831972060,0.05727531,3469.9,3469.4,3.69534]
[1719831972775,0.05727531,3469.9,3469.6,0.813]
[1719831973086,0.05727531,3469.9,3469.6,3.69515]
[1719831977514,3.05727531,3469.9,3469.6,3.69515]
[1719831977811,0.05727531,3469.9,3469.6,3.69515]
[1719831978189,0.02077972,3470.3,3469.7,2.88209]
[1719831978419,0.05709585,3469.8,3469.7,2.88209]
[1719831978614,0.02077972,3470.1,3469.7,2.88209]
[1719831978810,0.05709585,3469.8,3469.7,2.88209]
[1719831979013,0.02077972,3470.1,3469.7,2.88209]
[1719831979214,0.05709585,3469.8,3469.7,2.88209]
[1719831979374,2.3339,3470.0,3469.7,2.88209]
[1719831979580,0.05709585,3469.8,3469.7,2.88209]
[1719831979791,2.3339,3470.0,3469.7,2.88209]
[1719831980112,0.02077972,3470.5,3469.7,2.88209]
[1719831980113,2.3185,3470.4,3469.7,2.88209]
[1719831980293,0.0571477,3469.9,3469.7,2.88209]
[1719831980692,0.05709585,3469.8,3469.5,2.88225]
[1719831980901,0.02077972,3470.2,3469.5,2.88225]
[1719831981115,2.3757514,3470.1,3469.5,2.88225]
[1719831981415,0.02077972,3470.0,3469.5,2.88225]
[1719831981615,0.92195563,3470.0,3469.4,2.88233]
[1719831981821,0.0571477,3469.9,3469.4,2.88233]
[1719831983044,0.07792742,3469.9,3469.4,2.88233]
[1719831983347,2.4794,3469.8,3469.1,2.88256]
[1719831983544,0.02077972,3469.7,3469.1,3.69556]
[1719831983716,0.07776211,3469.7,3469.1,3.69556]
[1719831985008,0.07776211,3469.7,3469.1,2.88256]
[1719831985208,0.07776211,3469.7,3469.1,3.69556]
[1719831985421,1.13287795,3469.7,3469.1,3.69556]
[1719831985760,0.07776211,3469.7,3469.2,2.88248]
[1719831986673,0.07776211,3469.7,3469.3,0.813]
[1719831988562,0.05698239,3469.7,3469.3,3.6954]
[1719831989338,0.07776211,3469.7,3469.3,3.6954]
[1719831995883,0.07776211,3469.7,3469.3,0.813]
[1719831997081,0.07776211,3469.7,3469.3,3.69542]
[1719831998385,0.05698239,3469.7,3469.3,3.69542]
[1719831999863,0.07776211,3469.7,3469.3,3.69542]
[1719832001361,0.07776211,3469.7,3469.3,0.813]
[1719832001560,0.07776211,3469.7,3469.1,5.76511]
[1719832001561,0.63347832,3469.7,3469.2,2.88248]
[1719832002188,0.63347832,3469.7,3469.3,0.813]
[1719832003896,0.57649593,3469.7,3469.3,0.813]
[1719832006084,0.57649593,3469.7,3469.2,2.88249]
[1719832006275,0.57649593,3469.7,3469.2,3.69549]
[1719832006474,0.05699465,3469.6,3469.2,0.813]
[1719832006805,0.57649593,3469.7,3469.2,0.813]
[1719832007170,0.05677011,3469.6,3469.2,0.813]
[1719832007572,0.02077972,3469.7,3469.2,0.813]
[1719832007882,0.05677011,3469.6,3469.2,0.813]
[1719832008084,0.02077972,3469.7,3469.2,3.69549]
[1719832008414,0.05680096,3469.6,3469.2,3.69549]
[1719832008714,0.02077972,3469.7,3469.2,3.69549]
[1719832008894,0.05699465,3469.6,3469.2,3.69549]
[1719832009103,0.02077972,3469.7,3469.2,3.69549]
[1719832009408,0.05699465,3469.6,3469.2,3.69549]
[1719832009810,0.02077972,3469.7,3469.2,3.69549]
[1719832010306,0.05699465,3469.6,3469.2,3.69549]
[1719832010516,0.02077972,3469.7,3469.2,3.69549]
[1719832010809,0.05683181,3469.6,3469.2,3.69549]
[1719832011177,0.02077972,3469.7,3469.2,3.69549]
[1719832011578,0.05683181,3469.6,3469.2,3.69549]
[1719832011914,0.02077972,3469.7,3469.2,3.69549]
[1719832012208,0.05699465,3469.6,3469.2,3.69549]
[1719832012506,0.02077972,3469.7,3469.2,3.69549]
[1719832012705,0.05686266,3469.6,3469.2,3.69549]
[1719832012898,0.02077972,3469.7,3469.2,3.69549]
[1719832013097,2.46623181,3469.6,3469.2,2.88249]
[1719832013289,2.46623181,3469.6,3469.3,0.813]
[1719832013698,2.46623181,3469.6,3469.5,0.813]
[1719832013910,0.05683181,3469.6,3469.5,0.813]
[1719832014088,2.43017972,3469.9,3469.5,0.813]
[1719832014289,0.05686799,3469.8,3469.5,0.813]
[1719832015100,0.05686799,3469.8,3469.7,6.57718]
[1719832015274,2.2665,3470.9,3470.1,2.88174]
[1719832015475,0.07404779,3470.8,3470.6,0.813]
[1719832015690,0.28732285,3470.8,3470.6,0.813]
[1719832016280,0.05326807,3470.8,3470.6,0.813]
[1719832017586,0.05326807,3470.8,3470.6,3.69434]
[1719832019997,0.05326807,3470.8,3470.7,2.88126]
[1719832020384,2.2802,3471.2,3470.8,2.88117]
[1719832020585,2.2828,3471.9,3471.1,0.813]
[1719832020781,0.23035797,3471.8,3471.4,3.69365]
[1719832020987,2.2828,3471.9,3471.7,2.88042]
[1719832021395,3.64610682,3473.1,3471.0,5.23607]
[1719832021396,2.4631,3472.4,3471.9,2.88018]
[1719832021604,2.4631,3472.4,3472.1,0.813]
[1719832021810,2.4631,3472.8,3472.3,0.813]
[1719832022028,2.4631,3472.8,3472.0,2.88018]
[1719832022029,0.02077972,3472.7,3472.0,2.88018]
[1719832022204,0.24838797,3472.6,3472.0,3.69318]
[1719832022894,0.24838797,3472.6,3472.1,2.8801]
[1719832023095,0.24838797,3472.6,3472.2,0.813]
[1719832023295,0.24838797,3472.6,3472.1,2.8801]
[1719832023621,0.02077972,3472.5,3472.1,2.8801]
[1719832024028,0.02077972,3472.5,3472.0,0.813]
[1719832024029,2.4631,3472.8,3472.4,0.813]
[1719832024195,2.4631,3472.8,3472.4,3.69284]
[1719832024396,2.4631,3472.8,3472.4,2.87984]
[1719832024727,2.4631,3472.8,3472.5,0.813]
[1719832025335,3.0,3473.3,3472.7,0.813]
[1719832025523,0.3,3473.2,3472.7,0.813]
[1719832025820,2.4793,3473.6,3472.6,2.87968]
[1719832026219,0.02077972,3473.5,3472.6,2.87968]
[1719832027326,3.02077972,3473.5,3472.6,2.87968]
[1719832028185,5.89971972,3473.5,3472.3,1.953]
[1719832028385,5.89971972,3473.5,3472.3,2.87992]
[1719832028386,3.71697197,3473.4,3472.3,2.87992]
[1719832028703,3.71697197,3473.4,3472.4,2.87984]
[1719832028704,3.02077972,3473.3,3472.4,2.87984]
[1719832028930,0.02077972,3473.2,3472.4,2.87984]
[1719832029923,0.04624082,3473.1,3472.4,2.87984]
[1719832030217,0.04624082,3473.1,3472.0,5.98334963]
[1719832030218,2.421,3472.9,3472.0,5.98334963]
[1719832030419,2.87972,3472.6,3472.0,5.98334963]
[1719832030628,0.02077972,3472.8,3472.0,5.98334963]
[1719832030629,0.02077972,3472.5,3472.0,5.98334963]
[1719832031134,0.04587844,3472.4,3472.0,5.98334963]
[1719832033832,0.04587844,3472.4,3471.8,2.88034]
[1719832034189,0.04587844,3472.4,3471.6,2.88051]
[1719832034391,0.02077972,3472.8,3471.6,2.88051]
[1719832034616,2.87978,3472.5,3471.6,2.88051]
[1719832034817,0.02077972,3472.4,3471.6,2.88051]
[1719832035017,0.06691001,3472.4,3471.6,2.88051]
[1719832035519,0.06691001,3472.4,3471.5,5.98334963]
[1719832035722,0.06691001,3472.4,3471.5,8.86393963]
[1719832035923,0.594674,3472.3,3471.5,8.86393963]
[1719832036124,0.06680646,3472.2,3471.5,8.86393963]
[1719832038123,0.04602674,3472.2,3471.6,2.88051]
[1719832038312,0.04602674,3472.2,3471.7,2.88042]
[1719832038517,0.04593631,3472.1,3471.7,2.88042]
[1719832038714,0.04593631,3472.1,3471.8,2.88034]
[1719832038917,3.0,3472.6,3471.9,0.05759897]
[1719832039225,0.68529017,3472.5,3471.9,2.88026]
[1719832039446,0.73141426,3472.5,3471.9,2.88026]
[1719832039606,0.75219398,3472.5,3471.9,2.88026]
[1719832040007,0.04612409,3472.5,3471.9,2.88026]
[1719832040240,0.02077972,3472.7,3471.9,2.93785844]
[1719832040739,0.04588594,3472.6,3471.9,2.93785844]
[1719832042115,0.04588594,3472.6,3471.9,2.88026]
[1719832046021,0.04588594,3472.6,3472.0,2.88018]
[1719832046226,0.59465251,3472.6,3472.0,2.88018]
[1719832046813,0.04588594,3472.6,3472.1,2.93762644]
[1719832047025,2.421,3472.9,3472.3,2.87993]
[1719832047227,0.0439114,3472.5,3472.4,0.0575908]
[1719832047426,2.421,3472.9,3472.4,0.0575908]
[1719832047627,0.04402598,3472.5,3472.3,2.87993]
[1719832047839,3.02077972,3473.2,3472.4,0.05759084]
[1719832048149,0.83493897,3473.1,3472.3,2.87993]
[1719832048327,2.87895,3473.5,3472.4,0.05759081]
[1719832048529,2.87895,3473.5,3472.0,2.4675]
[1719832048530,0.02077972,3473.4,3472.6,2.87966]
[1719832049223,2.3395,3473.3,3472.4,2.87984]
[1719832049444,0.02077972,3473.2,3472.4,2.87984]
[1719832050322,2.89998972,3473.2,3472.2,2.87999]
[1719832050667,3.70322897,3473.1,3472.2,2.87999]
[1719832050869,0.02077972,3473.0,3472.2,2.87999]
[1719832052568,0.02077972,3473.0,3472.3,2.87993]
[1719832053441,0.82393897,3473.1,3472.4,2.93743066]
[1719832053645,0.84471869,3473.1,3472.4,2.93743066]
[1719832054456,0.84471869,3473.1,3472.4,2.87984]
[1719832054762,0.84471869,3473.1,3472.2,2.88001]
[1719832055360,0.84471869,3473.1,3472.3,2.87986]
[1719832056272,3.38264087,3473.0,3472.0,2.88018]
[1719832056485,0.02077972,3472.9,3472.0,2.88018]
[1719832056921,3.02077972,3472.9,3472.0,2.88018]
[1719832057120,5.90026972,3472.9,3471.9,5.98334963]
[1719832057327,0.92829106,3472.8,3471.9,8.86360963]
[1719832057660,0.02077972,3472.7,3471.9,8.86360963]
[1719832059937,0.04398582,3472.6,3471.9,8.86360963]
[1719832060141,0.04398582,3472.6,3471.9,5.98334963]
[1719832060344,2.369,3472.5,3471.9,5.98334963]
[1719832060543,2.88002,3472.2,3471.9,5.98334963]
[1719832060765,3.71118955,3472.4,3471.3,2.88073]
[1719832060766,0.02077972,3472.1,3471.4,8.86396963]
[1719832060967,0.02077972,3472.3,3471.5,2.88058]
[1719832061262,0.04395267,3472.2,3471.5,2.88058]
[1719832062165,0.04395267,3472.2,3471.6,0.05760494]
[1719832062370,0.04395267,3472.2,3471.6,0.9497584]
[1719832062545,0.04395267,3472.2,3471.6,0.89215346]
[1719832062742,2.38977972,3472.5,3471.6,0.89215346]
[1719832062953,0.04388156,3472.1,3471.8,2.88032]
[1719832063134,0.04381043,3472.0,3471.9,2.88021]
[1719832063334,0.04381043,3472.0,3471.9,3.49837635]
[1719832063535,3.02077972,3472.7,3472.0,2.88014]
[1719832063536,0.02077972,3472.7,3472.0,2.88014]
[1719832063746,3.0,3472.6,3472.0,2.88014]
[1719832064072,0.04411428,3472.6,3472.2,2.88001]
[1719832064568,2.28567972,3472.8,3472.2,2.88001]
[1719832065169,0.06496322,3472.7,3472.2,2.88001]
[1719832065368,0.0441835,3472.7,3472.3,2.87992]
[1719832065535,2.2649,3472.8,3472.3,2.87992]
[1719832065736,2.2649,3472.8,3472.4,2.87984]
[1719832066048,0.02077972,3473.0,3472.4,2.87984]
[1719832066049,0.04418786,3472.7,3472.4,2.87984]
[1719832066243,0.02077972,3473.0,3472.4,2.87984]
[1719832066548,0.84633369,3473.0,3472.4,2.87984]
[1719832066752,0.04427207,3472.9,3472.4,2.87984]
[1719832066940,0.04427207,3472.9,3472.2,2.88]
[1719832067141,0.04427207,3472.9,3472.3,2.87992]
[1719832068251,0.04427207,3472.9,3472.4,2.87983]
[1719832071874,0.04427207,3472.9,3472.5,0.814]
[1719832073738,0.04427207,3472.9,3472.3,2.87993]
[1719832074501,0.04427207,3472.9,3472.2,0.814]
[1719832079523,0.04427207,3472.9,3472.2,1.39295979]
[1719832081315,2.429,3472.8,3472.1,3.69403]
[1719832081757,0.04331472,3472.7,3472.1,3.69403]
[1719832082521,2.94371444,3472.7,3471.9,6.60151598]
[1719832082665,2.94371444,3472.7,3471.9,6.79734963]
[1719832083170,2.3316,3472.6,3471.9,6.79734963]
[1719832083811,0.04319185,3472.5,3471.9,5.98334963]
[1719832084020,0.06397157,3472.5,3471.9,5.98334963]
[1719832085385,2.87985,3472.4,3471.6,0.89215346]
[1719832085577,2.87985,3472.4,3471.5,5.98334963]
[1719832085578,2.88001,3472.2,3471.5,5.98334963]
[1719832085867,0.04294606,3472.1,3471.5,5.98334963]
[1719832086097,0.04294606,3472.1,3471.6,0.814]
[1719832086668,5.33684,3472.3,3471.6,0.814]
[1719832086881,0.04285004,3472.0,3471.6,0.814]
[1719832087079,2.90079972,3472.2,3471.6,0.814]
[1719832087280,0.04279824,3471.9,3471.6,0.814]
[1719832087497,2.90079972,3472.2,3471.6,0.814]
[1719832087696,0.04283194,3471.8,3471.6,0.814]
[1719832087901,2.90079972,3472.2,3471.6,0.814]
[1719832088099,0.04276081,3471.7,3471.6,0.814]
[1719832088296,2.90079972,3472.2,3471.6,0.814]
[1719832088497,2.50336591,3471.7,3471.1,2.88091]
[1719832088700,2.4606,3471.7,3471.2,0.814]
[1719832088900,0.04276979,3471.6,3471.2,0.814]
[1719832089269,0.06354951,3471.6,3471.0,5.98334963]
[1719832089471,0.02077972,3471.6,3471.0,6.79734963]
[1719832089701,0.04286479,3471.5,3471.2,0.814]
[1719832089900,2.48137972,3471.7,3471.2,0.814]
[1719832090201,0.04281299,3471.4,3471.2,0.814]
[1719832090391,2.48137972,3471.7,3471.2,0.814]
[1719832090599,0.04276119,3471.3,3471.2,0.814]
[1719832090808,2.48137972,3471.7,3471.2,0.814]
[1719832091221,0.04289726,3471.6,3471.2,0.814]
[1719832091928,0.06367698,3471.6,3471.2,0.814]
[1719832092623,0.04289726,3471.6,3471.2,0.814]
[1719832093194,2.4606,3471.7,3471.2,1.21323395]
[1719832093703,0.04286448,3471.6,3471.2,1.21323395]
[1719832093897,2.4606,3471.7,3471.2,1.21323395]
[1719832094106,0.04281268,3471.5,3471.2,0.814]
[1719832094301,2.4606,3471.7,3471.2,0.814]
[1719832094501,0.04274155,3471.4,3471.2,0.814]
[1719832094698,0.04274155,3471.4,3471.0,10.06761159]
[1719832094699,2.90128972,3471.6,3471.0,8.00062159]
[1719832094902,0.04268974,3471.3,3471.0,5.98334963]
[1719832095097,0.02077972,3471.6,3471.0,5.98334963]
[1719832095339,0.04263793,3471.2,3471.0,5.98334963]
[1719832095498,0.02077972,3471.6,3471.0,6.79734963]
[1719832095727,0.04258612,3471.1,3471.0,6.79734963]
[1719832095914,0.02077972,3471.6,3471.0,7.76520159]
[1719832096113,0.04258612,3471.1,3471.0,6.79734963]
[1719832096327,0.02077972,3471.6,3471.0,6.79734963]
[1719832096743,0.04279335,3471.5,3471.0,6.79734963]
[1719832098636,2.4706,3471.4,3471.0,6.79734963]
[1719832098952,2.51330288,3471.4,3471.0,6.79734963]
[1719832099315,2.51330288,3471.4,3471.0,0.814]
[1719832101057,2.51330288,3471.4,3470.8,2.88117]
[1719832101216,2.51330288,3471.4,3470.8,3.69517]
[1719832103228,2.51330288,3471.4,3470.8,4.95115396]
[1719832104527,2.51330288,3471.4,3471.0,0.814]
[1719832109651,2.51330288,3471.4,3470.5,5.98334963]
[1719832109652,5.13718,3471.2,3470.5,5.98334963]
[1719832109850,0.02077972,3471.1,3470.5,5.98334963]
[1719832110066,2.2563,3471.0,3470.5,5.98334963]
[1719832110261,5.13736,3471.0,3470.5,5.98334963]
[1719832110655,0.04233721,3470.9,3470.5,5.98334963]
[1719832111448,2.2773,3470.7,3470.1,12.17]
[1719832111653,2.2773,3470.7,3470.0,6.79734963]
[1719832111850,2.2773,3470.7,3470.1,1.25611696]
[1719832111851,0.04217987,3470.6,3470.1,1.25611696]
[1719832116058,0.04217987,3470.6,3470.0,8.86517963]
[1719832116357,0.02077972,3470.5,3470.0,5.98334963]
[1719832116557,2.90227972,3470.5,3470.0,5.98334963]
[1719832116781,0.04212425,3470.4,3470.0,5.98334963]
[1719832117364,2.2649,3470.3,3469.5,8.86559963]
[1719832117577,2.2649,3470.3,3469.6,2.9472109]
[1719832117856,2.2649,3470.3,3469.5,8.86559963]
[1719832117857,2.2649,3469.9,3469.5,5.98334963]
[1719832118192,2.2649,3469.9,3469.2,2.88245]
[1719832118402,0.04208573,3469.8,3469.2,2.88245]
[1719832118569,0.04208573,3469.8,3469.3,0.814]
[1719832124027,0.04208573,3469.8,3469.3,1.25775974]
[1719832124829,0.04208573,3469.8,3469.3,4.14016974]
[1719832125596,0.04208573,3469.8,3469.4,2.88232]
[1719832125931,0.04208573,3469.8,3469.5,3.75387882]
[1719832126126,0.04208573,3469.8,3469.5,3.69624]
[1719832128202,0.04208573,3469.8,3469.5,0.814]
[1719832130693,0.04208573,3469.8,3469.5,1.51625597]
[1719832130893,2.2649,3469.9,3469.5,1.51625597]
[1719832130894,2.4882,3470.4,3469.7,3.69609]
[1719832131532,0.04225385,3470.3,3469.7,3.69609]
[1719832131935,3.04225385,3470.3,3469.8,0.05763331]
[1719832136907,3.04225385,3470.3,3469.8,2.93962331]
[1719832140098,3.04225385,3470.3,3469.6,2.8821]
[1719832140305,2.3606,3470.2,3469.6,2.8821]
[1719832140504,2.40258179,3470.2,3469.6,2.8821]
[1719832141739,0.02077972,3470.1,3469.5,0.814]
[1719832142039,2.40258179,3470.2,3469.5,0.814]
[1719832142040,2.40258179,3470.2,3469.7,3.69603]
[1719832142215,2.40258179,3470.2,3469.7,4.95219096]
[1719832142216,0.0418781,3470.0,3469.7,4.95219096]
[1719832142412,0.04192058,3470.1,3470.0,2.88184]
[1719832142628,3.0,3470.6,3470.0,3.75347133]
[1719832142933,2.3346,3470.7,3470.2,2.88166]
[1719832143238,2.3346,3470.7,3470.2,2.93928779]
[1719832145628,2.3346,3470.7,3470.3,2.88151]